Workbook

Sheet Introduction
C9: Beef Enterprise Budgets
B12: Richard Trimble Kenneth Burdine Greg Halich
C13: Lee Meyer Steve Isaacs
C15: Department of Agricultural Economics
A19: This publication contains budgets for production of selected livestock enterprises in Kentucky.
A20: The purpose of these budgets is to serve as a management and decision-making guide for current and
A21: prospective producers of these enterprises.
A22: These budgets are not intended to replace a producer's own records and estimates.
A23: Producers are strongly encouraged to adapt these budgets to their specific situation.
A24: In the absence of such data, however, these budgets can serve as a reasonably accurate cost and income guide.
A26: These budget estimates are based on input cost information and livestock price projections available
A27: at the time of release. Further, costs and returns are based on production practices and yield
A28: levels thought to be representative of typical producers in Kentucky given normal growing conditions and markets. This
A29: publication allows producers to change prices and quantities for easy adaptation of the budgets to their own farming
A30: situation.
A32: All of the blue numbers are input cells. These are the numbers you can change. Due to formulas, every cell
A33: cannot be manipulated. Also, remember that enterprise budgets are calculated on a per head basis.
A34: Therefore, costs that are expressed on a per head basis have the quantity column fixed at 1 head.
A36: The budgets are listed on the Table of Contents page. There are instructions for navigating between budgets on
A37: that page.
A39: Users who desire to change budget formats or formulas must remove sheet protection first. The password to remove
A40: sheet protection is uk .
D43: Questions or Comments?
D44: Kenny Burdine
D45: kburdine@uky.edu
D46: University of Kentucky
E47: Department of Agricultural Economics
E48: 415 Charles E. Barnhart Building
E49: Lexington, KY 40546-0276
E50: Phone: (859) 257-7273
A53: Educational programs of Kentucky Cooperative Extension serve all people regardless of economic or social status and will not discriminate on the basis of race, color, ethnic origin, national origin, creed, religion, political belief, sex, sexual orientation, gender identity, gender expression, pregnancy, marital status, genetic information, age, veteran status, physical or mental disability or reprisal or retaliation for prior civil rights activity. Reasonable accommodation of disability may be available with prior notice. Program information may be available in languages other than English. University of Kentucky, Kentucky State University, U.S. Department of Agriculture, and Kentucky Counties, Cooperating.

Sheet Table of Contents
F4: Table of Contents
D6: The boxes below contain links to each of the livestock budgets. Click on
D7: the desired budget below, and it will take you to that particular budget.
D8: Once on the budget sheet, you can click on the Table of Contents button to
D9: return to this page to select a different budget, or simply click on the name
D10: of the budget along the bottom of the screen to navigate to a different budget.

Sheet CowCalf Spring
A1: COMMERCIAL COW-CALF BUDGET, SPRING CALVING HERD
A3: Projected Costs and Returns per Cow
A5: Calving Rate (live births/cow) | E5: 0.85
A6: Death Rate (birth to market) | E6: 0
A7: Cow Replacement Rate | E7: 0.15
A8: Breeding Herd Death Rate | E8: 0.01
E10: AMOUNT | F10: UNIT | G10: PRICE | H10: TOTAL
A11: Expected Returns per Cow
C12: Number | D12: Weight
A13: Steer Calf | C13: =E5/2-((E5*E6)/2) -> 0.425 | D13: 575 | E13: =C13*D13 -> 244.375 | F13: lb | G13: 2.45 | H13: =E13*G13 -> 598.71875
A14: Heifer Calf | C14: =(E5/2-((E5*E6)/2)-E7) -> 0.275 | D14: 550 | E14: =C14*D14 -> 151.25 | F14: lb | G14: 2.25 | H14: =E14*G14 -> 340.3125
A15: Cull Cow | C15: =E7-E8 -> 0.14 | D15: 1300 | E15: =C15*D15 -> 182 | F15: lb | G15: 0.8 | H15: =E15*G15 -> 145.6
A16: TOTAL RETURNS | H16: =SUM(H13:H15) -> 1084.63125
A18: VARIABLE COSTS PER COW
A19: Pasture Maintenance | E19: 2 | F19: acre | G19: 40 | H19: =E19*G19 -> 80
A20: Hay | E20: 2.5 | F20: ton | G20: 90 | H20: =E20*G20 -> 225
A21: Grain | E21: 0 | F21: lb | G21: 0 | H21: 0
A22: Salt and Mineral | E22: 91.25 | F22: lb | G22: 0.4 | H22: 36.5
A23: Vet and Medical | E23: 1 | F23: head | G23: 30 | H23: 30
A24: Breeding | E24: 1 | F24: head | G24: 50 | H24: 50
A25: Marketing | E25: 1 | F25: head | G25: 40 | H25: =E25*G25 -> 40
A26: Main of Replacement Heifer | E26: =E7 -> 0.15 | F26: head | G26: ='Replacement Beef Heifer'!H37 -> 451.075 | H26: 67.66125
A27: Mach & Equip (Fuel/Rep/Main) | E27: 1 | F27: head | G27: 40 | H27: 40
A28: Other | E28: 1 | F28: head | G28: 15 | H28: 15
A29: Interest on Operating Capital | E29: =SUM(H19:H28) -> 584.16125 | F29: dollars | G29: 0.08 | H29: =(9/12)*G29*E29 -> 35.049675
A30: Total Variable Costs Per Cow | H30: =SUM(H19:H29) -> 619.210925
A32: RETURN ABOVE VARIABLE COSTS PER COW | H32: =H16-H30 -> 465.420325
A34: FIXED COSTS PER COW
A35: Depreciation | H35: 150
A36: Taxes and Insurance | H36: 30
A37: Operator / Family Labor | E37: 0 | F37: hours | G37: 20 | H37: =E37*G37 -> 0
A38: Total Fixed Cost per Cow | H38: =SUM(H35:H37) -> 180
A40: Total Cost per Cow | H40: =H30+H38 -> 799.210925
A42: RETURN TO LAND, CAPITAL, AND MANAGEMENT | H42: =H32-H38 -> 285.420325
A44: BREAKEVEN PRICES PER POUND TO COVER VARIABLE COSTS:
B45: Cull Cows = | C45: =(H30/H16)*G15 -> 0.4567162711 | D45: Heifers = | E45: =(H30/H16)*G14 -> 1.284514512 | F45: Steers = | G45: =(H30/H16)*G13 -> 1.39869358
A46: BREAKEVEN PRICES PER POUND TO COVER ALL SPECIFIED COSTS:
B47: Cull Cows = | C47: =(H40/H16)*G15 -> 0.5894802865 | D47: Heifers = | E47: =(H40/H16)*G14 -> 1.657913306 | F47: Steers = | G47: =(H40/H16)*G13 -> 1.805283377

Sheet CowCalf Fall
A1: COMMERCIAL COW-CALF BUDGET, FALL CALVING HERD
A3: Projected Costs and Returns per Cow
A5: Calving Rate (live births/cow) | E5: 0.85
A6: Death Rate (birth to market) | E6: 0
A7: Cow Replacement Rate | E7: 0.15
A8: Breeding Herd Death Rate | E8: 0.01
E10: AMOUNT | F10: UNIT | G10: PRICE | H10: TOTAL
A11: Expected Returns per Cow
C12: Number | D12: Weight
A13: Steer Calf | C13: =E5/2-((E5*E6)/2) -> 0.425 | D13: 575 | E13: =C13*D13 -> 244.375 | F13: lb | G13: 2.65 | H13: =E13*G13 -> 647.59375
A14: Heifer Calf | C14: =(E5/2-((E5*E6)/2)-E7) -> 0.275 | D14: 550 | E14: =C14*D14 -> 151.25 | F14: lb | G14: 2.45 | H14: =E14*G14 -> 370.5625
A15: Cull Cow | C15: =E7-E8 -> 0.14 | D15: 1300 | E15: =C15*D15 -> 182 | F15: lb | G15: 0.85 | H15: =E15*G15 -> 154.7
A16: TOTAL RETURNS | H16: =SUM(H13:H15) -> 1172.85625
A18: VARIABLE COSTS PER COW
A19: Pasture Maintenance | E19: 2 | F19: acre | G19: 40 | H19: =E19*G19 -> 80
A20: Hay | E20: 3 | F20: ton | G20: 90 | H20: 270
A21: Grain | E21: 0 | F21: lb | G21: 0 | H21: 0
A22: Salt and Mineral | E22: 91.25 | F22: lb | G22: 0.4 | H22: 36.5
A23: Vet and Medical | E23: 1 | F23: head | G23: 30 | H23: 30
A24: Breeding | E24: 1 | F24: head | G24: 50 | H24: 50
A25: Marketing | E25: 1 | F25: head | G25: 40 | H25: =E25*G25 -> 40
A26: Main of Replacement Heifer | E26: =E7 -> 0.15 | F26: head | G26: ='Replacement Beef Heifer'!H37 -> 451.075 | H26: 67.66125
A27: Mach & Equip (Fuel/Rep/Main) | E27: 1 | F27: head | G27: 40 | H27: 40
A28: Other | E28: 1 | F28: head | G28: 15 | H28: 15
A29: Interest on Operating Capital | E29: =SUM(H19:H28) -> 629.16125 | F29: dollars | G29: 0.08 | H29: =(10/12)*G29*E29 -> 41.94408333
A30: Total Variable Costs per Cow | H30: =SUM(H19:H29) -> 671.1053333
A32: RETURN ABOVE VARIABLE COSTS PER COW | H32: =H16-H30 -> 501.7509167
A34: FIXED COSTS PER COW
A35: Depreciation | H35: 150
A36: Taxes and Insurance | H36: 30
A37: Operator / Family Labor | E37: 0 | F37: hours | G37: 20 | H37: =E37*G37 -> 0
A38: Total Fixed Cost per Cow | H38: =SUM(H35:H37) -> 180
A40: Total Cost per Cow | H40: =H30+H38 -> 851.1053333
A42: RETURN TO LAND, CAPITAL, AND MANAGEMENT | H42: =H16-H40 -> 321.7509167
A44: BREAKEVEN PRICES PER POUND TO COVER VARIABLE COSTS:
A45: Cull Cows = | B45: =H30/H16*G15 -> 0.4863678165 | C45: Heifers = | D45: =H30/H16*G14 -> 1.401883706 | E45: Steers = | F45: =(H30/H16)*G13 -> 1.516323192
A46: BREAKEVEN PRICES PER POUND TO COVER ALL SPECIFIED COSTS:
A47: Cull Cows = | B47: =(H40/H16)*G15 -> 0.6168185857 | C47: Heifers = | D47: =(H40/H16)*G14 -> 1.777888865 | E47: Steers = | F47: =(H40/H16)*G13 -> 1.923022649

Sheet Replacement Beef Heifer
A1: REPLACEMENT BEEF HEIFER GROWTH AND MAINTENANCE
A2: BUDGET
A3: Weaning to 18 Months of Age
A6: Projected Costs and Returns per Head
E8: AMOUNT | F8: UNIT | G8: PRICE | H8: TOTAL
A10: EXPECTED RETURNS PER HEAD | H10: N/A
A13: VARIABLE COSTS PER HEAD
A14: Pasture Maintenance | E14: 1 | F14: acre | G14: 40 | H14: =E14*G14 -> 40
A15: Hay | E15: 1 | F15: ton | G15: 90 | H15: =E15*G15 -> 90
A16: Grain | E16: 1000 | F16: lb | G16: 0.14 | H16: 140
A17: Soybean Oil Meal | E17: 0 | F17: lb | G17: 0.2 | H17: 0
A18: Salt and Mineral | E18: 91.25 | F18: lb | G18: 0.4 | H18: 36.5
A19: Vet and Medical | E19: 1 | F19: head | G19: 50 | H19: 50
A20: Breeding | E20: 1 | F20: head | G20: 0 | H20: 0
A21: Mach & Equip (Fuel/Rep/Main) | E21: 1 | F21: head | G21: 20 | H21: 20
A22: Other | E22: 1 | F22: head | G22: 15 | H22: 15
A23: Interest on Operating Capital | E23: =SUM(H14:H22) -> 391.5 | F23: dollars | G23: 0.05 | H23: =G23*E23 -> 19.575
A25: TOTAL VARIABLE COSTS PER HEAD | H25: =SUM(H14:H23) -> 411.075
A27: RETURN ABOVE VARIABLE COSTS PER HEAD | H27: N/A
A29: FIXED COSTS PER HEAD
A30: Depreciation | H30: 30
A31: Taxes and Insurance | H31: 10
A32: Operator / Family Labor | E32: 0 | F32: hours | G32: 20 | H32: =E32*G32 -> 0
A34: TOTAL FIXED COST PER HEAD | H34: =SUM(H30:H32) -> 40
A37: TOTAL COST PER HEAD | H37: =H25+H34 -> 451.075
A39: RETURN TO LAND, CAPITAL, AND MANAGEMENT | H39: N/A

Sheet Steer Backgrounding
A1: STEER BACKGROUNDING BUDGET
A3: Projected Costs and Returns per Steer,
A4: Various Feeding Programs
E7: Silage & | F7: Corn & Hay | G7: Corn & Hay
E8: Protein | F8: (limited) | G8: (full feed)
A10: Average Daily Gain (lbs) | E10: 2.1 | F10: 1.5 | G10: 2
A11: Purch. Weight (lbs) | B11: 450
A12: Sales Weight (lbs) | B12: 750
A13: Days in Program | E13: =(B12-B11)/E10 -> 142.8571429 | F13: =($B$12-$B$11)/F10 -> 200 | G13: =(B12-B11)/G10 -> 150
A15: RATIONS AND FEED USES
A16: Feed/day (lbs) | B16: Corn | E16: 0 | F16: 3 | G16: 7.5
B17: Alfalfa Hay
B18: Mixed Hay | E18: 0 | F18: 8.5 | G18: 6
B19: Silage | E19: 40 | F19: 0
B20: Soybean meal | E20: 1.5 | F20: 0.5 | G20: 1
A22: PRICES: | E22: COST FOR WEIGHT GAINED
A24: Stocker calf | C24: 2.65 | E24: =+B11*C24 -> 1192.5 | F24: =+$B$11*$C$24 -> 1192.5 | G24: =+B11*C24 -> 1192.5
A25: Corn | C25: 5 | E25: =(C25/56)*E16*E13 -> 0 | F25: =($C$25/56)*F16*F13 -> 53.57142857 | G25: =(C25/56)*G16*G13 -> 100.4464286
A26: Hay | C26: 90 | E26: =(C26/2000)*E18*E13 -> 0 | F26: =(C26/2000)*F18*F13 -> 76.5 | G26: =(C26/2000)*G18*G13 -> 40.5
A27: Silage | C27: 35 | E27: =(C27/2000)*E19*E13 -> 100 | F27: =(C27/2000)*F19*F13 -> 0 | G27: =(C27/2000)*G19*G13 -> 0
A28: SBM | C28: 0.18 | E28: =(C28*E20*E13) -> 38.57142857 | F28: =(C28*F20*F13) -> 18 | G28: =(C28*G20*G13) -> 27
A29: Misc/day (hay) | C29: 0.1 | F29: =+$C$29*F13 -> 20 | G29: =+C29*G13 -> 15
A30: Misc/day (silage) | C30: 0.15 | E30: =C30*E13 -> 21.42857143
A31: Misc/head (med, imp.etc.) | C31: 10 | E31: =C31 -> 10 | F31: =C31 -> 10 | G31: =C31 -> 10
A32: Interest (calf) | C32: 0.08 | E32: =(E13/365)*C32*E24 -> 37.33855186 | F32: =(F13/365)*$C$32*F24 -> 52.2739726 | G32: =(G13/365)*C32*G24 -> 39.20547945
A33: Death Loss (%) | C33: 0.02 | E33: =+C33*(E24+E31) -> 24.05 | F33: =+$C$33*(F24+F31) -> 24.05 | G33: =+C33*(G24+G31) -> 24.05
A35: Feed Cost per Day | E35: =SUM(E25:E28)/E13 -> 0.97 | F35: =SUM(F25:F28)/F13 -> 0.7403571429 | G35: =SUM(G25:G28)/G13 -> 1.119642857
A36: Feed Cost - Total | E36: =SUM(E25:E28) -> 138.5714286 | F36: =SUM(F25:F28) -> 148.0714286 | G36: =SUM(G25:G28) -> 167.9464286
A37: Feed Cost/lb gain | E37: =+E36/(B12-B11) -> 0.4619047619 | F37: =+F36/($B$12-$B$11) -> 0.4935714286 | G37: =+G36/(B12-B11) -> 0.5598214286
A39: TOTAL COST | E39: =SUM(E24:E33) -> 1423.888552 | F39: =SUM(F24:F33) -> 1446.895401 | G39: =SUM(G24:G33) -> 1448.701908
A41: Non-calf costs | E41: =E39-E24 -> 231.3885519 | F41: =F39-F24 -> 254.3954012 | G41: =G39-G24 -> 256.201908
A42: Cash Costs (feed,misc) | E42: =E25+E26+E27+E28+E31 -> 148.5714286 | F42: =F25+F26+F27+F28+F31 -> 158.0714286 | G42: =G25+G26+G27+G28+G31 -> 177.9464286
A43: All cash costs | E43: =E24+E42 -> 1341.071429 | F43: =F24+F42 -> 1350.571429 | G43: =G24+G42 -> 1370.446429
A44: COST / POUND OF GAIN | E44: =(E39-E24)/(B12-B11) -> 0.7712951729 | F44: =(F39-F24)/($B$12-$B$11) -> 0.8479846706 | G44: =(G39-G24)/(B12-B11) -> 0.8540063601
A45: SELLING PRICE | C45: 2.3 | E45: =C45*B12 -> 1725 | F45: =$C$45*$B$12 -> 1725 | G45: =C45*B12 -> 1725
A47: Returns over listed expenses: | E47: =+E45-E39 -> 301.1114481 | F47: =+F45-F39 -> 278.1045988 | G47: =+G45-G39 -> 276.298092
A49: Breakeven | E49: =E39/B12 -> 1.898518069 | F49: =F39/$B$12 -> 1.929193868 | G49: =G39/B12 -> 1.931602544
A51: Cash cost breakeven | E51: =E43/B12 -> 1.788095238 | F51: =F43/$B$12 -> 1.800761905 | G51: =G43/B12 -> 1.827261905

Sheet Summer Grazing
A1: SUMMER GRAZING BUDGET
A3: Projected Costs and Returns per Calf and Herd Total
A7: Buy Date: | C7: 2024-04-15 | D7: Sell Date: | E7: 2024-10-15
A10: Avg. Daily Gain | B10: 1.4 | C10: lbs
A11: Days in program | B11: =E7-C7 -> 183 | C11: days
A12: Sale Weight | B12: =B24+B11*B10 -> 706.2 | C12: lbs
A13: Weight Gain | B13: =B10*B11 -> 256.2 | C13: lbs
A14: Death Loss | B14: 0.02
A15: Number of Cattle | B15: 60 | C15: head
A16: Pasture-acres used | B16: 60 | C16: acres
A17: Stocking Rate | B17: =B16/B15 -> 1 | C17: ac/hd
A19: Expected Returms | B19: AMOUNT | C19: UNIT | D19: PRICE | E19: PER CALF | F19: HERD TOTAL
A20: Feeder Calf | B20: =B12 -> 706.2 | C20: lbs | D20: 2.3 | E20: =B20*D20 -> 1624.26 | F20: =E20*B15 -> 97455.6
A21: TOTAL RETURNS | E21: =SUM(E20:E20) -> 1624.26 | F21: =SUM(F20:F20) -> 97455.6
A23: VARIABLE COSTS
A24: Purchase of Feeder Calf | B24: 450 | C24: lbs | D24: 2.7 | E24: =B24*D24 -> 1215 | F24: =E24*B15 -> 72900
A25: Pasture Maintenance | B25: =B17 -> 1 | C25: acre | D25: 45 | E25: 45 | F25: =E25*B15 -> 2700
A26: Hay | B26: 0 | C26: ton | D26: 90 | E26: 0 | F26: =E26*B15 -> 0
A27: Grain | B27: 0 | C27: lbs | D27: 0.1 | E27: 0 | F27: =E27*B15 -> 0
A28: Salt and Mineral | B28: 50 | C28: lbs | D28: 0.4 | E28: 20 | F28: =E28*B15 -> 1200
A29: Vet and Medical | B29: 1 | C29: head | D29: 30 | E29: 30 | F29: =E29*B15 -> 1800
A30: Marketing | B30: 1 | C30: head | D30: =SUM(5+0.025*(E21)) -> 45.6065 | E30: 45.6065 | F30: =E30*B15 -> 2736.39
A31: Mach & Equip (Fuel/Rep/Main) | B31: 1 | C31: head | D31: 20 | E31: 20 | F31: =E31*B15 -> 1200
A32: Death Loss Expense | E32: =B14*(E24+E29) -> 24.9 | F32: =B14*(F24+F29) -> 1494
A33: Other | B33: 1 | C33: head | D33: 10 | E33: =B33*D33 -> 10 | F33: =E33*B15 -> 600
A34: Interest on Operating Capital | B34: =SUM(E24:E29) -> 1310 | C34: dollars | D34: 0.08 | E34: =(B11/365)*D34*B34 -> 52.54356164 | F34: =E34*B15 -> 3152.613699
A35: TOTAL VARIABLE COSTS: | E35: =SUM(E24:E34) -> 1463.050062 | F35: =SUM(F24:F34) -> 87783.0037
A37: RETURN ABOVE VARIABLE COSTS | E37: =E21-E35 -> 161.2099384 | F37: =F21-F35 -> 9672.596301
A39: FIXED COSTS
A40: Depreciation | E40: 30 | F40: =E40*B15 -> 1800
A41: Taxes/Insurance | E41: 15 | F41: =E41*B15 -> 900
A42: Operator/Family Labor | B42: 1 | C42: hours | D42: 10 | E42: =B42*D42 -> 10 | F42: =E42*B15 -> 600
A43: TOTAL FIXED COSTS | E43: =SUM(E40:E42) -> 55 | F43: =SUM(F40:F42) -> 3300
A45: TOTAL COST | E45: =E35+E43 -> 1518.050062 | F45: =F35+F43 -> 91083.0037
A47: RETURN TO LAND, CAPITAL, AND MANAGEMENT | E47: =E21-E45 -> 106.2099384 | F47: =F21-F45 -> 6372.596301
B49: Breakeven Price to cover variable costs | E49: =E35/B12 -> 2.071721979
B50: Breakeven Price to cover all costs | E50: =E45/B12 -> 2.149603599
